bitfinex-derivatives/quotes_SOLF0:USTF0_20241009
["timestamp","ask_amount","ask_price","bid_price","bid_amount"]
[1728437135710,0.12502,144.83,144.8,3.4544]
[1728437138512,0.12502,144.83,144.8,14.0644]
[1728437139206,3.57892,144.83,144.8,3.4544]
[1728437140311,3.57892,144.83,144.8,14.0644]
[1728437140312,0.12502,144.83,144.8,14.0644]
[1728437141719,0.12502,144.83,144.8,10.61]
[1728437142523,0.12502,144.83,144.81,3.4542]
[1728437145634,0.12502,144.83,144.82,14.0641]
[1728437146320,2.0,144.87,144.86,3.4531]
[1728437147429,2.0,144.87,144.84,15.97]
[1728437147622,2.0,144.87,144.84,8.8134]
[1728437147924,2.0,144.87,144.84,5.36]
[1728437148122,14.0634,144.85,144.82,3.4539]
[1728437148323,10.61,144.85,144.81,15.97]
[1728437150429,3.4536,144.84,144.81,8.8142]
[1728437151528,3.4532,144.86,144.83,3.4538]
[1728437152729,5.4529,144.87,144.84,3.4535]
[1728437152924,2.0,144.87,144.81,5.36]
[1728437153320,3.4531,144.86,144.83,3.4537]
[1728437157236,3.4534,144.85,144.82,3.4539]
[1728437157738,2.0,144.87,144.81,5.36]
[1728437157931,3.4532,144.86,144.83,3.4537]
[1728437158323,2.0,144.87,144.81,5.36]
[1728437158524,2.0,144.87,144.84,3.4534]
[1728437159435,5.4531,144.87,144.84,3.4534]
[1728437159734,2.0,144.87,144.81,5.36]
[1728437159936,2.0,144.87,144.82,3.4539]
[1728437160125,3.4534,144.85,144.82,3.4539]
[1728437160430,2.0,144.87,144.82,3.4539]
[1728437160636,3.4531,144.86,144.81,5.36]
[1728437161232,3.4531,144.86,144.83,3.4537]
[1728437162336,2.0,144.87,144.85,16.58]
[1728437162539,0.12502,144.89,144.88,3.4526]
[1728437162836,0.12502,144.95,144.88,16.58]
[1728437163035,3.57622,144.95,144.91,3.4518]
[1728437163431,16.70502,144.95,144.87,5.36]
[1728437163630,3.4525,144.89,144.87,5.36]
[1728437164029,3.4525,144.89,144.86,5.36]
[1728437164230,3.4525,144.89,144.86,8.8131]
[1728437165632,3.4518,144.92,144.87,16.58]
[1728437165831,5.36,144.94,144.87,16.58]
[1728437166541,3.4517,144.92,144.88,3.4525]
[1728437168440,5.36,144.94,144.87,16.58]
[1728437168739,0.12502,144.95,144.87,16.58]
[1728437168950,0.12502,144.95,144.89,16.58]
[1728437169146,3.4516,144.93,144.9,3.4521]
[1728437169941,0.12502,144.95,144.87,16.58]
[1728437170245,0.12502,144.95,144.88,5.3]
[1728437170440,3.4516,144.93,144.89,3.4523]
[1728437171849,16.70502,144.95,144.87,3.4528]
[1728437172039,16.70502,144.95,144.88,5.3]
[1728437172237,3.4515,144.93,144.85,16.58]
[1728437172547,10.6,144.91,144.86,5.3]
[1728437172745,3.4526,144.89,144.86,5.3]
[1728437173052,5.3,144.92,144.84,10.6]
[1728437173249,3.453,144.87,144.84,10.6]
[1728437174452,1.3258,144.9,144.86,10.6]
[1728437174947,3.4526,144.89,144.85,14.0533]
[1728437175136,11.9258,144.9,144.83,76.33463151]
[1728437175341,11.9258,144.9,144.84,14.0535]
[1728437176254,11.9258,144.9,144.83,71.03463151]
[1728437176455,3.48890359,144.89,144.83,8.87872]
[1728437176657,3.4531,144.87,144.83,8.87872]
[1728437176857,21.87,144.88,144.83,0.12502]
[1728437177055,16.57,144.86,144.83,0.12502]
[1728437177249,3.4536,144.84,144.83,0.12502]
[1728437179671,3.48672378,144.89,144.83,0.12502]
[1728437179860,5.3,144.88,144.83,0.12502]
[1728437180062,8.7524,144.89,144.85,3.4531]
[1728437181159,5.3,144.89,144.85,3.4531]
[1728437181359,5.3,144.89,144.84,3.4535]
[1728437181854,3.4527,144.88,144.84,3.4535]
[1728437182753,5.3,144.89,144.84,3.4535]
[1728437182956,3.4529,144.87,144.84,3.4535]
[1728437183555,5.3,144.89,144.83,16.69502]
[1728437183857,5.3,144.89,144.83,0.12502]
[1728437184246,3.4529,144.87,144.84,3.4534]
[1728437184863,3.4528,144.88,144.85,3.4533]
[1728437185253,5.3,144.89,144.83,0.12502]
[1728437185458,8.7075197,144.89,144.83,0.12502]
[1728437185860,5.3,144.89,144.83,3.57882]
[1728437186266,3.4531,144.87,144.83,3.57882]
[1728437187464,3.4533,144.86,144.83,3.57882]
[1728437187669,16.57,144.88,144.83,0.12502]
[1728437187962,3.4535,144.85,144.83,0.12502]
[1728437188160,16.57,144.86,144.83,0.12502]
[1728437188865,3.4536,144.84,144.83,0.12502]
[1728437191266,2.7362,144.9,144.83,0.12502]
[1728437191760,3.4525,144.89,144.85,3.4532]
[1728437191966,2.7362,144.9,144.83,0.12502]
[1728437192562,2.7362,144.9,144.84,3.4535]
[1728437192563,3.4529,144.88,144.84,3.4535]
[1728437192954,2.7362,144.9,144.84,3.4535]
[1728437193155,1.3258,144.9,144.83,16.69502]
[1728437193863,4.778,144.9,144.83,16.69502]
[1728437194265,4.778,144.9,144.86,3.4529]
[1728437194770,4.778,144.9,144.87,3.4529]
[1728437197271,4.778,144.9,144.83,16.69502]
[1728437197471,4.778,144.9,144.86,3.453]
[1728437197675,3.4526,144.89,144.83,16.69502]
[1728437198060,3.4526,144.89,144.85,3.4532]
[1728437198576,3.4526,144.88,144.85,3.4532]
[1728437199676,3.4526,144.89,144.85,3.4533]
[1728437200068,1.3258,144.9,144.83,0.12502]
[1728437200578,3.4527,144.88,144.84,3.4534]
[1728437200875,1.3258,144.9,144.84,3.4534]
[1728437201173,3.453,144.87,144.84,3.4534]
[1728437203372,3.44422639,144.89,144.83,0.12502]
[1728437203566,3.4531,144.86,144.83,3.57872]
[1728437203772,19.98280853,144.87,144.83,0.12502]
[1728437203967,16.57,144.87,144.83,0.12502]
[1728437204179,21.91,144.87,144.83,0.12502]
[1728437204869,3.4532,144.86,144.83,0.12502]
[1728437205175,21.91,144.87,144.83,0.12502]
[1728437205578,3.4534,144.85,144.83,0.12502]
[1728437206078,8.793,144.87,144.83,3.57862]
[1728437206578,3.453,144.87,144.83,3.57862]
[1728437206779,3.453,144.87,144.84,3.4534]
[1728437206976,3.4527,144.88,144.83,0.12502]
[1728437207476,3.4527,144.88,144.85,3.4532]
[1728437207678,3.4527,144.88,144.83,0.12502]
[1728437208376,3.4529,144.87,144.84,3.4534]
[1728437210580,2.717,144.89,144.83,0.12502]
[1728437210780,3.4527,144.88,144.85,3.4531]
[1728437213583,3.453,144.87,144.84,3.4535]
[1728437215985,1.3258,144.9,144.85,10.6]
[1728437216783,10.6,144.89,144.83,0.12502]
[1728437217088,10.6,144.88,144.83,10.72502]
[1728437217886,3.4532,144.86,144.83,14.17862]
[1728437219286,3.4535,144.85,144.83,0.12502]
[1728437219492,10.6,144.85,144.83,0.12502]
[1728437220388,3.4536,144.84,144.83,0.12502]
[1728437226084,3.4535,144.85,144.83,0.12502]
[1728437226392,4.83914289,144.89,144.83,10.72502]
[1728437226393,15.96,144.88,144.83,10.72502]
[1728437227591,15.96,144.88,144.83,14.17872]
[1728437227592,3.4531,144.86,144.83,14.17872]
[1728437229192,3.4534,144.85,144.83,0.12502]
[1728437229793,14.0536,144.84,144.83,0.12502]
[1728437232782,3.4536,144.84,144.83,0.12502]
[1728437233287,10.6,144.86,144.83,0.12502]
[1728437233490,3.4535,144.85,144.83,0.12502]
[1728437234890,3.4536,144.84,144.83,0.12502]
[1728437238693,1.2949,144.87,144.83,3.57872]
[1728437238694,3.4532,144.86,144.83,3.57872]
[1728437239289,3.4529,144.87,144.84,3.4534]
[1728437239792,15.88,144.88,144.83,0.12502]
[1728437239992,3.4531,144.86,144.83,3.57872]
[1728437241593,15.88,144.88,144.83,3.57872]
[1728437241594,3.4528,144.88,144.85,3.4532]
[1728437241998,10.6,144.88,144.84,10.6]
[1728437242196,10.6,144.88,144.83,0.12502]
[1728437242885,10.6,144.87,144.83,0.12502]
[1728437243087,10.6,144.85,144.83,0.12502]
[1728437243486,3.4536,144.84,144.83,0.12502]
[1728437243686,14.0536,144.84,144.83,0.12502]
[1728437243888,14.0536,144.84,144.77,0.12502]
[1728437243889,10.6,144.84,144.77,0.12502]
[1728437244204,10.6,144.84,144.6,25.2909568]
[1728437244205,10.6,144.78,144.71,10.72502]
[1728437244494,6.81502,144.83,144.71,0.12502]
[1728437244495,10.6,144.76,144.71,0.12502]
[1728437244700,10.6,144.76,144.71,10.72502]
[1728437245201,3.4559,144.75,144.71,14.18172]
[1728437246098,3.456,144.74,144.71,0.12502]
[1728437246310,10.6,144.77,144.72,10.6]
[1728437246506,3.53879231,144.77,144.71,0.12502]
[1728437246704,16.6,144.79,144.71,0.12502]
[1728437246705,17.9364,144.79,144.71,0.12502]
[1728437246904,3.4559,144.75,144.71,3.58162]
[1728437247199,3.4559,144.75,144.71,0.12502]
[1728437247200,16.6,144.75,144.71,0.12502]
[1728437247807,3.4565,144.72,144.71,0.12502]
[1728437249500,3.457,144.7,144.66,3.4578]
[1728437249706,16.6,144.73,144.65,8.86312]
[1728437249903,6.5821,144.72,144.65,8.86312]
[1728437251101,3.4575,144.68,144.65,5.40502]
[1728437251319,3.43792213,144.7,144.65,0.12502]
[1728437251800,16.6,144.71,144.65,0.12502]
[1728437252402,20.11675611,144.71,144.65,0.12502]
[1728437253305,3.4571,144.7,144.65,0.12502]
[1728437253504,20.11675611,144.71,144.65,0.12502]
[1728437254415,6.5821,144.72,144.65,0.12502]
[1728437254610,3.4569,144.71,144.66,3.4577]
[1728437254905,6.85702912,144.71,144.66,3.4577]
[1728437255310,3.40012912,144.71,144.66,3.4577]
[1728437255610,3.457,144.7,144.66,3.4577]
[1728437255803,3.40012912,144.71,144.65,0.12502]
[1728437256112,1.3021,144.72,144.65,0.12502]
[1728437256318,6.6118,144.74,144.66,21.88]
[1728437256506,3.4565,144.72,144.69,3.457]
[1728437256812,3.4565,144.72,144.66,21.88]
[1728437257211,3.4565,144.72,144.68,3.4572]
[1728437257410,3.4563,144.73,144.66,21.88]
[1728437258505,10.068,144.74,144.66,21.88]
[1728437258707,6.6118,144.74,144.66,21.88]
[1728437259209,3.4564,144.73,144.69,3.457]
[1728437260419,1.3318,144.74,144.71,3.4566]
[1728437260710,1.3318,144.74,144.67,16.6]
[1728437261317,4.7879,144.74,144.7,3.4569]
[1728437262413,3.4563,144.73,144.66,7.9386]
[1728437262610,3.4563,144.73,144.69,3.4571]
[1728437265818,3.4563,144.73,144.7,3.4569]
[1728437266115,3.4565,144.72,144.66,7.9386]
[1728437266320,3.4565,144.72,144.68,3.4573]
[1728437266924,3.4565,144.72,144.69,3.4572]
[1728437267122,3.4567,144.72,144.67,10.63]
[1728437267326,10.63,144.73,144.67,10.63]
[1728437267618,1.3318,144.74,144.66,3.4578]
[1728437267619,10.63,144.7,144.66,3.4578]
[1728437268526,3.4572,144.69,144.66,3.4578]
[1728437270920,14.087,144.7,144.67,3.4576]
[1728437271115,3.457,144.7,144.67,3.4576]
[1728437271517,10.63,144.71,144.67,3.4576]
[1728437271719,14.0868,144.71,144.67,14.0876]
[1728437272620,10.63,144.71,144.67,3.4576]
[1728437272822,3.4569,144.7,144.67,3.4576]
[1728437277226,3.4565,144.72,144.69,3.4572]
[1728437280628,3.4563,144.73,144.68,10.63]
[1728437281033,3.4563,144.73,144.7,3.4569]
[1728437281426,11.9618,144.74,144.68,10.63]
[1728437281737,3.4565,144.72,144.69,3.4571]
[1728437283130,1.3318,144.74,144.67,10.63]
[1728437283131,1.3318,144.74,144.7,3.4568]
[1728437283330,8.0487,144.76,144.71,10.63]
[1728437283530,17.2063,144.78,144.73,10.63]
[1728437283727,6.5763,144.78,144.73,10.63]
[1728437284038,1.2963,144.78,144.73,10.63]
[1728437284534,4.7514,144.78,144.74,3.4558]
[1728437284835,1.2963,144.78,144.74,10.63]
[1728437285341,13.4256,144.81,144.75,10.63]
[1728437285644,3.41062718,144.87,144.76,10.63]
[1728437285645,5.40502,144.83,144.76,10.63]
[1728437285838,19.48882,144.83,144.79,3.4546]
[1728437286029,19.48882,144.83,144.79,14.0846]
[1728437286431,10.75502,144.83,144.8,3.4545]
[1728437286633,0.12502,144.83,144.79,10.63]
[1728437287227,0.12502,144.83,144.8,3.4545]
[1728437288439,3.57892,144.83,144.8,3.4545]
[1728437290338,0.12502,144.83,144.8,3.4545]
[1728437290840,0.12502,144.83,144.76,21.86]
[1728437291037,0.12502,144.83,144.78,16.58]
[1728437291240,0.12502,144.83,144.81,16.58]
[1728437291435,0.12502,144.83,144.82,21.8]
[1728437291739,0.12502,144.83,144.82,28.75616086]
[1728437292039,0.12502,144.83,144.82,5.22]
[1728437296639,0.12502,144.83,144.82,8.6741]
[1728437297232,0.12502,144.83,144.82,25.2541]
[1728437297640,0.12502,144.83,144.82,8.6741]
[1728437301247,0.12502,144.83,144.82,25.2541]
[1728437301447,3.4527,144.88,144.85,3.4532]
[1728437303051,4.99012,144.89,144.86,3.453]
[1728437303553,0.12502,144.89,144.84,16.58]
[1728437303737,0.12502,144.89,144.86,16.58]
[1728437303943,0.12502,144.89,144.87,5.22]
[1728437304947,0.12502,144.89,144.87,8.62624396]
[1728437305149,0.12502,144.89,144.87,5.22]
[1728437305449,0.12502,144.89,144.88,3.4526]
[1728437307652,1.3647,144.94,144.91,3.4519]
[1728437308247,0.12502,144.95,144.92,3.4515]
[1728437308449,0.12502,144.95,144.91,5.22]
[1728437309148,0.12502,144.95,144.92,3.4516]
[1728437309353,0.12502,144.95,144.91,5.22]
[1728437309744,0.12502,144.95,144.94,3.4512]
[1728437310150,0.12502,144.95,144.91,5.22]
[1728437310546,0.12502,144.95,144.94,10.6]
[1728437310752,3.57472,145.01,144.96,3.4507]
[1728437310951,3.57472,145.01,144.97,10.6]
[1728437311161,10.6,144.99,144.89,1.49612]
[1728437311344,0.12502,145.01,144.89,1.49612]
[1728437311345,3.4508,144.96,144.92,14.0515]
[1728437311763,10.6,144.98,144.92,14.0515]
[1728437311962,3.4505,144.97,144.92,10.6]
[1728437312147,0.12502,145.01,144.89,1.49612]
[1728437312148,5.22,145.0,144.89,1.49612]
[1728437312354,6.5489,145.0,144.92,10.6]
[1728437312647,10.6,144.98,144.93,10.6]
[1728437313657,3.4506,144.97,144.93,10.6]
[1728437314252,10.6,144.97,144.92,15.82]
[1728437314454,1.3289,145.0,144.92,15.82]
[1728437314750,10.6,144.98,144.92,15.82]
[1728437315160,10.6,144.98,144.89,1.49612]
[1728437315350,1.3289,145.0,144.9,15.82]
[1728437315351,10.6,144.97,144.9,15.82]
[1728437315656,3.4512,144.94,144.9,19.2721]
[1728437316252,3.4519,144.91,144.89,5.34502]
[1728437316456,10.6,144.93,144.89,5.34502]
[1728437317155,10.6,144.93,144.89,0.12502]
[1728437317357,10.6,144.91,144.89,0.12502]
[1728437318057,3.4522,144.9,144.89,0.12502]
[1728437318468,10.6,144.91,144.85,10.6]
[1728437318764,1.2976,144.92,144.85,10.6]
[1728437318765,3.4528,144.88,144.85,10.6]
[1728437319261,3.4527,144.88,144.85,10.6]
[1728437320167,10.6,144.89,144.83,0.12502]
[1728437320354,10.6,144.89,144.84,15.98]
[1728437320554,10.6,144.87,144.84,5.38]
[1728437320761,10.6,144.87,144.83,0.12502]
[1728437320959,3.4536,144.84,144.83,0.12502]
[1728437321159,10.6,144.86,144.83,0.12502]
[1728437321361,3.4536,144.84,144.83,0.12502]
[1728437327269,1.4258,144.89,144.83,10.72502]
[1728437327571,3.4532,144.86,144.85,10.6]
[1728437327774,1.4258,144.89,144.85,10.6]
[1728437328073,5.38,144.91,144.87,10.6]
[1728437328565,3.4524,144.89,144.87,10.6]
[1728437330064,5.38,144.91,144.87,10.6]
[1728437330369,3.4522,144.9,144.86,3.4531]
[1728437330574,3.4522,144.9,144.86,20.0331]
[1728437331368,3.4524,144.89,144.86,16.58]
[1728437331977,3.4524,144.89,144.86,20.0331]
[1728437332678,3.4523,144.9,144.86,20.0331]
[1728437332977,4.1125,144.93,144.88,20.0326]
[1728437332978,1.3463,144.93,144.88,20.0326]
[1728437333271,1.3463,144.93,144.88,25.4126]
[1728437333475,1.3463,144.93,144.88,21.96]
[1728437334374,3.4519,144.91,144.88,21.96]
[1728437334574,3.4519,144.91,144.88,25.4126]
[1728437335478,3.4516,144.93,144.89,3.4522]
[1728437336779,0.12502,144.95,144.88,21.96]
[1728437336978,3.452,144.91,144.88,25.4126]
[1728437337978,0.12502,144.95,144.87,5.38]
[1728437337979,16.58,144.93,144.87,5.38]
[1728437338482,3.4521,144.91,144.87,8.8328]
[1728437338983,3.4523,144.9,144.87,5.38]
[1728437339490,3.4526,144.89,144.86,5.38]
[1728437340381,3.4526,144.89,144.86,8.8331]
[1728437340586,3.4528,144.88,144.86,5.38]
[1728437340787,21.96,144.93,144.86,5.38]
[1728437341188,3.4525,144.89,144.86,5.38]
[1728437343588,3.4525,144.89,144.86,3.4531]
[1728437343988,3.4522,144.9,144.85,5.38]
[1728437344196,3.4522,144.9,144.87,3.4527]
[1728437345285,3.4522,144.9,144.86,20.033]
[1728437345692,5.38,144.93,144.86,16.58]
[1728437345904,0.12502,144.95,144.91,3.4518]
[1728437346204,0.12502,144.95,144.9,5.38]
[1728437346386,3.57612,144.95,144.91,3.4519]
[1728437347198,0.12502,144.95,144.9,5.38]
[1728437347793,0.12502,144.95,144.9,8.832]
[1728437347794,3.4514,144.94,144.9,8.832]
[1728437347992,0.12502,144.95,144.9,5.38]
[1728437348393,3.57622,144.95,144.91,3.4518]
[1728437349199,0.12502,144.95,144.93,3.4514]
[1728437349595,0.12502,144.95,144.91,16.58]
[1728437349794,0.12502,144.95,144.92,3.4516]
[1728437350191,0.12502,144.95,144.9,5.38]
[1728437350397,0.12502,144.95,144.92,10.61]
[1728437350798,3.4516,144.93,144.9,5.38]
[1728437352201,10.61,144.94,144.9,5.38]
[1728437352401,3.4514,144.94,144.9,19.442]
[1728437352596,0.12502,144.95,144.92,10.61]
[1728437353001,0.12502,144.95,144.93,10.61]
[1728437354405,0.12502,144.95,144.94,10.61]
[1728437354809,0.12502,144.95,144.94,14.0612]
[1728437355207,0.12502,144.95,144.9,5.38]
[1728437355397,0.12502,144.95,144.92,10.61]
[1728437355801,0.12502,144.95,144.94,3.4512]
[1728437356100,0.12502,144.95,144.94,19.4212]
[1728437356399,0.12502,144.95,144.94,5.36]
[1728437358610,0.12502,144.95,144.94,8.8112]
[1728437358800,0.12502,144.95,144.94,5.36]
[1728437360504,3.4515,144.93,144.91,5.36]
[1728437360698,0.12502,144.95,144.91,5.36]
[1728437361103,3.57602,144.95,144.92,3.4517]
[1728437361499,0.12502,144.95,144.92,3.4517]
[1728437362212,0.12502,144.95,144.91,5.36]
[1728437363014,0.12502,144.95,144.92,3.4515]
[1728437363710,3.4513,144.94,144.91,8.8119]
[1728437364212,3.57602,144.95,144.92,3.4516]
[1728437364411,0.12502,144.95,144.92,3.4516]
[1728437364710,0.12502,144.95,144.91,5.36]
[1728437365114,3.57612,144.95,144.92,3.4515]
[1728437366023,0.12502,144.95,144.92,3.4515]
[1728437369022,0.12502,144.95,144.91,5.36]
[1728437369225,0.12502,144.95,144.93,3.4513]
[1728437370224,3.57602,144.95,144.92,3.4516]
[1728437370426,3.57602,144.95,144.91,5.36]
[1728437371220,3.57602,144.95,144.91,8.8118]
[1728437371423,3.57602,144.95,144.91,5.36]
[1728437371925,0.12502,144.95,144.93,3.4514]
[1728437376430,0.12502,144.95,144.93,14.0614]
[1728437376830,3.57602,144.95,144.92,3.4516]
[1728437377026,10.73502,144.95,144.88,70.88223533]
[1728437377224,0.12502,144.95,144.89,15.97]
[1728437377523,10.61,144.94,144.89,15.97]
[1728437377921,3.4518,144.92,144.89,19.4223]
[1728437378122,0.12502,144.95,144.88,70.88223533]
[1728437378323,10.61,144.91,144.88,70.88223533]
[1728437378723,3.4523,144.9,144.88,70.88223533]
[1728437378924,10.61,144.92,144.88,70.88223533]
[1728437379523,3.4524,144.89,144.88,70.88223533]
[1728437380330,3.4524,144.89,144.79,2.6234]
[1728437380331,3.453,144.87,144.84,10.61]
[1728437380631,10.61,144.9,144.84,10.61]
[1728437381032,3.453,144.87,144.83,10.73502]
[1728437381228,10.61,144.88,144.83,16.03502]
[1728437381737,3.4533,144.86,144.83,16.03502]
[1728437382824,3.453,144.87,144.83,19.48872]
[1728437383030,5.3,144.92,144.85,10.61]
[1728437383225,10.61,144.91,144.86,10.61]
[1728437384042,10.61,144.9,144.84,10.61]
[1728437385160,10.61,144.9,144.84,14.0635]
[1728437385738,3.4528,144.88,144.84,14.0635]
[1728437386141,3.4528,144.88,144.84,10.61]
[1728437386443,3.4528,144.88,144.85,3.4533]
[1728437386943,3.4524,144.9,144.87,14.0629]
[1728437387835,3.4524,144.9,144.87,10.61]
[1728437388143,3.4524,144.89,144.87,10.61]
[1728437389341,3.4523,144.9,144.87,10.61]
[1728437389842,3.452,144.91,144.87,10.61]
[1728437390035,15.91,144.92,144.87,10.61]
[1728437390731,3.4524,144.9,144.87,10.61]
[1728437391135,5.3,144.92,144.88,10.61]
[1728437391337,3.4522,144.9,144.87,14.0627]
[1728437391739,3.452,144.91,144.88,3.4526]
[1728437391946,9.3589,144.94,144.89,10.61]
[1728437392137,14.6689,144.94,144.89,10.61]
[1728437392338,14.6689,144.94,144.85,3.53019395]
[1728437392339,3.4519,144.91,144.88,14.0626]
[1728437393439,10.61,144.93,144.87,15.91]
[1728437395544,3.4523,144.9,144.87,19.3628]
[1728437395849,14.6689,144.94,144.88,10.61]
[1728437396040,3.4519,144.92,144.89,3.4524]
[1728437397846,3.4515,144.93,144.91,10.61]
[1728437398948,3.4515,144.93,144.9,3.4519]
[1728437400344,1.3003,144.94,144.89,10.61]
[1728437400541,1.3003,144.94,144.91,10.61]
[1728437401146,3.4512,144.94,144.91,14.0617]
[1728437401351,0.12502,144.95,144.91,10.61]
[1728437401550,0.12502,144.95,144.88,10.61]
[1728437401754,3.4521,144.91,144.88,15.91]
[1728437402050,10.61,144.93,144.88,5.3]
[1728437402239,10.61,144.92,144.87,10.61]
[1728437402441,10.61,144.92,144.86,19.363]
[1728437402657,10.61,144.92,144.87,10.61]
[1728437402942,10.61,144.93,144.88,3.4526]
[1728437403539,3.4515,144.93,144.88,3.4526]
[1728437403748,10.61,144.93,144.88,3.4526]
[1728437404544,10.61,144.93,144.87,14.0628]
[1728437404941,0.12502,144.95,144.86,5.3]
[1728437404942,10.61,144.92,144.86,5.3]
[1728437405141,1.3242,144.92,144.86,19.3631]
[1728437405358,11.9342,144.92,144.86,19.3631]
[1728437405744,3.4524,144.89,144.86,14.0631]
[1728437406049,11.9342,144.92,144.88,10.61]
[1728437406050,1.3242,144.92,144.88,10.61]
[1728437406248,4.776,144.92,144.88,10.61]
[1728437406950,0.12502,144.95,144.9,10.61]
[1728437407551,3.4517,144.92,144.89,10.61]
[1728437407748,3.4517,144.92,144.89,14.0624]
[1728437407943,10.73502,144.95,144.91,10.61]
[1728437407944,0.12502,144.95,144.91,10.61]
[1728437408456,10.73502,144.95,144.9,3.4521]
[1728437409057,0.12502,144.95,144.9,10.61]
[1728437409357,0.12502,144.95,144.92,10.61]
[1728437409749,0.12502,144.95,144.92,14.0615]
[1728437410365,3.57602,144.95,144.92,14.0615]
[1728437411656,0.12502,144.95,144.92,14.0615]
[1728437412055,0.12502,144.95,144.9,10.61]
[1728437412450,10.61,144.94,144.89,5.26]
[1728437412658,0.12502,144.95,144.88,5.26]
[1728437412659,3.4523,144.9,144.88,5.26]
[1728437413647,3.4524,144.89,144.88,5.26]
[1728437413865,10.61,144.93,144.88,5.26]
[1728437414069,10.61,144.91,144.83,2.80692]
[1728437414260,10.61,144.91,144.83,14.18872]
[1728437414261,3.453,144.87,144.83,14.18872]
[1728437414474,3.453,144.87,144.83,19.44872]
[1728437415865,3.453,144.87,144.84,10.61]
[1728437416967,10.61,144.88,144.83,0.12502]
[1728437417176,3.4533,144.86,144.83,0.12502]
[1728437417961,3.4534,144.85,144.83,0.12502]
[1728437418166,14.03178181,144.89,144.83,10.73502]
[1728437418468,3.9759,144.9,144.86,10.61]
[1728437418773,3.4528,144.88,144.86,10.61]
[1728437419063,19.8459,144.9,144.84,14.0634]
[1728437419264,3.4531,144.87,144.84,10.61]
[1728437420466,3.4533,144.86,144.84,10.61]
[1728437420764,14.01913613,144.89,144.83,10.73502]
[1728437421162,10.61,144.88,144.83,10.73502]
[1728437421364,3.4535,144.85,144.83,10.73502]
[1728437421769,10.61,144.88,144.83,10.73502]
[1728437422356,3.453,144.87,144.84,3.4535]
[1728437422565,5.26,144.89,144.86,10.61]
[1728437423060,5.26,144.89,144.85,10.61]
[1728437423257,3.4529,144.87,144.85,10.61]
[1728437423765,3.4528,144.88,144.84,10.61]
[1728437423970,5.26,144.89,144.84,10.61]
[1728437424371,8.79334235,144.89,144.84,10.61]
[1728437424669,3.453,144.87,144.84,10.61]
[1728437425067,3.4532,144.86,144.84,10.61]
[1728437425366,10.61,144.87,144.83,0.12502]
[1728437425766,3.4535,144.85,144.83,10.73502]
[1728437426567,0.12502,144.95,144.84,10.61]
[1728437426872,1.48172,144.95,144.9,10.61]
[1728437427059,1.48172,144.95,144.9,14.062]
[1728437427264,3.4514,144.94,144.9,14.062]
[1728437427469,3.4514,144.94,144.92,10.61]
[1728437427669,1.48172,144.95,144.93,10.61]